[Event "Titled Tuesday Blitz August 31 2021"]
[White "Karas, Marek"]
[Black "Harshavardhan G B"]
[WhiteFideId "14928558"]
[BlackFideId "25059009"]
[WhiteElo "2264"]
[BlackElo "1825"]
[Result "0-1"]
[Round "04"]
[TimeControl "180+1"]
[Date "2021.08.31"]
[WhiteClock "0:00:13"]
[BlackClock "0:00:45"]

1. Nf3 {[%clk 0:02:45]}  Nc6 {[%clk 0:02:58]} 2. e4 {[%clk 0:02:44]}  e5 {[%clk 0:02:57]} 3. Bb5 {[%clk 0:02:44]}  Nf6 {[%clk 0:02:58]} 4. O-O {[%clk 0:02:42]}  Nxe4 {[%clk 0:02:57]} 5. Re1 {[%clk 0:02:24]}  Nd6 {[%clk 0:02:55]} 6. Nxe5 {[%clk 0:02:20]}  Be7 {[%clk 0:02:55]} 7. d4 {[%clk 0:02:16]}  Nxe5 {[%clk 0:02:52]} 8. Rxe5 {[%clk 0:02:17]}  O-O {[%clk 0:02:50]} 9. Bf1 {[%clk 0:02:15]}  Bf6 {[%clk 0:02:49]} 10. Re1 {[%clk 0:02:12]}  Nf5 {[%clk 0:02:49]} 11. c3 {[%clk 0:02:10]}  d5 {[%clk 0:02:48]} 12. Bf4 {[%clk 0:02:08]}  Nd6 {[%clk 0:02:47]} 13. Nd2 {[%clk 0:02:06]}  c6 {[%clk 0:02:45]} 14. Qf3 {[%clk 0:01:58]}  Be6 {[%clk 0:02:29]} 15. Bd3 {[%clk 0:01:55]}  Qd7 {[%clk 0:02:27]} 16. Re2 {[%clk 0:01:08]}  Bg4 {[%clk 0:02:24]} 17. Qg3 {[%clk 0:01:06]}  Bxe2 {[%clk 0:02:24]} 18. Bxe2 {[%clk 0:01:07]}  Rfe8 {[%clk 0:02:23]} 19. Bd3 {[%clk 0:01:06]}  Ne4 {[%clk 0:02:20]} 20. Nxe4 {[%clk 0:01:04]}  dxe4 {[%clk 0:02:21]} 21. Bc4 {[%clk 0:01:05]}  Rad8 {[%clk 0:02:19]} 22. Re1 {[%clk 0:01:03]}  b5 {[%clk 0:02:10]} 23. Bb3 {[%clk 0:01:00]}  b4 {[%clk 0:02:09]} 24. h3 {[%clk 0:00:54]}  bxc3 {[%clk 0:02:07]} 25. bxc3 {[%clk 0:00:51]}  Qf5 {[%clk 0:01:59]} 26. Be3 {[%clk 0:00:42]}  c5 {[%clk 0:01:57]} 27. Rd1 {[%clk 0:00:36]}  cxd4 {[%clk 0:01:56]} 28. cxd4 {[%clk 0:00:37]}  Be7 {[%clk 0:01:48]} 29. d5 {[%clk 0:00:33]}  Bd6 {[%clk 0:01:47]} 30. Qh4 {[%clk 0:00:32]}  Qe5 {[%clk 0:01:47]} 31. g3 {[%clk 0:00:30]}  Qf5 {[%clk 0:01:47]} 32. Bxa7 {[%clk 0:00:27]}  g5 {[%clk 0:01:24]} 33. Qg4 {[%clk 0:00:23]}  Qxg4 {[%clk 0:01:18]} 34. hxg4 {[%clk 0:00:24]}  Kg7 {[%clk 0:01:18]} 35. Be3 {[%clk 0:00:24]}  h6 {[%clk 0:01:17]} 36. Kg2 {[%clk 0:00:24]}  Rc8 {[%clk 0:01:15]} 37. Rd2 {[%clk 0:00:23]}  Red8 {[%clk 0:01:13]} 38. Bd4+ {[%clk 0:00:24]}  f6 {[%clk 0:01:11]} 39. Re2 {[%clk 0:00:24]}  Re8 {[%clk 0:01:11]} 40. Ba4 {[%clk 0:00:23]}  Re7 {[%clk 0:01:10]} 41. Bc6 {[%clk 0:00:23]}  Rb8 {[%clk 0:01:06]} 42. a3 {[%clk 0:00:22]}  Bxa3 {[%clk 0:01:03]} 43. Ra2 {[%clk 0:00:22]}  Bd6 {[%clk 0:01:03]} 44. Re2 {[%clk 0:00:22]}  Rb4 {[%clk 0:01:01]} 45. Be3 {[%clk 0:00:23]}  Rb3 {[%clk 0:00:59]} 46. Ra2 {[%clk 0:00:23]}  Ra3 {[%clk 0:00:58]} 47. Rb2 {[%clk 0:00:23]}  Kg6 {[%clk 0:00:53]} 48. Rc2 {[%clk 0:00:22]}  h5 {[%clk 0:00:52]} 49. gxh5+ {[%clk 0:00:22]}  Kxh5 {[%clk 0:00:53]} 50. Rb2 {[%clk 0:00:21]}  f5 {[%clk 0:00:50]} 51. Bd4 {[%clk 0:00:20]}  f4 {[%clk 0:00:50]} 52. gxf4 {[%clk 0:00:21]}  gxf4 {[%clk 0:00:51]} 53. Bb5 {[%clk 0:00:13]}  f3+ {[%clk 0:00:47]} 54. Kh3 {[%clk 0:00:13]}  Ra1 {[%clk 0:00:45]} 0-1


[Site "https://www.chess.com"]

[Event "Titled Tuesday Blitz August 31 2021"]
[White "Karttunen, Mika"]
[Black "Dudzinski, Pawel"]
[WhiteFideId "502081"]
[BlackFideId "1117890"]
[WhiteElo "2343"]
[BlackElo "2193"]
[Result "1-0"]
[Round "04"]
[TimeControl "180+1"]
[Date "2021.08.31"]
[WhiteClock "0:00:03"]
[BlackClock "0:00:05"]

1. e4 {[%clk 0:03:00]}  c6 {[%clk 0:02:57]} 2. d4 {[%clk 0:03:00]}  d5 {[%clk 0:02:55]} 3. e5 {[%clk 0:03:00]}  c5 {[%clk 0:02:54]} 4. dxc5 {[%clk 0:02:55]}  Nc6 {[%clk 0:02:54]} 5. Nf3 {[%clk 0:02:54]}  Bg4 {[%clk 0:02:54]} 6. Bb5 {[%clk 0:02:52]}  e6 {[%clk 0:02:54]} 7. b4 {[%clk 0:02:50]}  a5 {[%clk 0:02:40]} 8. c3 {[%clk 0:02:27]}  Qc7 {[%clk 0:02:37]} 9. Bf4 {[%clk 0:02:04]}  g6 {[%clk 0:01:48]} 10. Nbd2 {[%clk 0:01:55]}  Bg7 {[%clk 0:01:48]} 11. h3 {[%clk 0:01:50]}  Bxf3 {[%clk 0:01:47]} 12. Nxf3 {[%clk 0:01:50]}  Ne7 {[%clk 0:01:47]} 13. O-O {[%clk 0:01:27]}  O-O {[%clk 0:01:47]} 14. a3 {[%clk 0:01:23]}  Nxe5 {[%clk 0:01:45]} 15. Re1 {[%clk 0:00:24]}  Nxf3+ {[%clk 0:01:41]} 16. Qxf3 {[%clk 0:00:23]}  e5 {[%clk 0:01:35]} 17. Bg5 {[%clk 0:00:21]}  f6 {[%clk 0:01:27]} 18. Bd2 {[%clk 0:00:13]}  Rfd8 {[%clk 0:01:23]} 19. Kh1 {[%clk 0:00:05]}  b6 {[%clk 0:01:22]} 20. cxb6 {[%clk 0:00:03]}  Qxb6 {[%clk 0:01:22]} 21. a4 {[%clk 0:00:04]}  axb4 {[%clk 0:00:48]} 22. cxb4 {[%clk 0:00:04]}  e4 {[%clk 0:00:48]} 23. Qe2 {[%clk 0:00:04]}  f5 {[%clk 0:00:47]} 24. Rac1 {[%clk 0:00:05]}  d4 {[%clk 0:00:39]} 25. Qd1 {[%clk 0:00:05]}  Kh8 {[%clk 0:00:29]} 26. Qb3 {[%clk 0:00:05]}  Nd5 {[%clk 0:00:28]} 27. Bc4 {[%clk 0:00:04]}  Nc3 {[%clk 0:00:26]} 28. a5 {[%clk 0:00:03]}  Qd6 {[%clk 0:00:22]} 29. a6 {[%clk 0:00:03]}  Rdb8 {[%clk 0:00:17]} 30. b5 {[%clk 0:00:03]}  Rxa6 {[%clk 0:00:15]} 31. Rxc3 {[%clk 0:00:04]}  dxc3 {[%clk 0:00:15]} 32. Bxc3 {[%clk 0:00:04]}  Rab6 {[%clk 0:00:13]} 33. Bxg7+ {[%clk 0:00:04]}  Kxg7 {[%clk 0:00:14]} 34. Rd1 {[%clk 0:00:04]}  Qe7 {[%clk 0:00:11]} 35. Qc3+ {[%clk 0:00:04]}  Qf6 {[%clk 0:00:08]} 36. Rd7+ {[%clk 0:00:04]}  Kh8 {[%clk 0:00:07]} 37. Qe3 {[%clk 0:00:04]}  Rf8 {[%clk 0:00:05]} 38. g3 {[%clk 0:00:04]}  f4 {[%clk 0:00:05]} 39. gxf4 {[%clk 0:00:04]}  g5 {[%clk 0:00:05]} 40. Qxe4 {[%clk 0:00:03]}  gxf4 {[%clk 0:00:05]} 41. Qxh7# {[%clk 0:00:03]} 1-0


[Site "https://www.chess.com"]

[Event "Titled Tuesday Blitz August 31 2021"]
[White "Khusnutdinov, Rustam"]
[Black "Kavyev, Ruslan"]
[WhiteFideId "13701703"]
[BlackFideId "34110981"]
[WhiteElo "2571"]
[BlackElo "2172"]
[Result "0-1"]
[Round "04"]
[TimeControl "180+1"]
[Date "2021.08.31"]
[WhiteClock "0:00:13"]
[BlackClock "0:00:06"]

1. d4 {[%clk 0:03:00]}  Nf6 {[%clk 0:02:53]} 2. c4 {[%clk 0:03:00]}  g6 {[%clk 0:02:53]} 3. Nc3 {[%clk 0:03:00]}  Bg7 {[%clk 0:02:50]} 4. e4 {[%clk 0:03:00]}  d6 {[%clk 0:02:50]} 5. Nge2 {[%clk 0:03:01]}  O-O {[%clk 0:02:51]} 6. Ng3 {[%clk 0:03:01]}  c5 {[%clk 0:02:49]} 7. d5 {[%clk 0:03:01]}  e6 {[%clk 0:02:39]} 8. Be2 {[%clk 0:03:01]}  exd5 {[%clk 0:02:34]} 9. cxd5 {[%clk 0:03:02]}  Re8 {[%clk 0:02:29]} 10. O-O {[%clk 0:03:01]}  a6 {[%clk 0:02:29]} 11. a4 {[%clk 0:03:01]}  Nbd7 {[%clk 0:02:29]} 12. h3 {[%clk 0:03:00]}  Rb8 {[%clk 0:02:04]} 13. Bg5 {[%clk 0:02:50]}  h6 {[%clk 0:01:57]} 14. Bf4 {[%clk 0:02:47]}  Ne5 {[%clk 0:01:56]} 15. Qd2 {[%clk 0:02:47]}  Kh7 {[%clk 0:01:56]} 16. Be3 {[%clk 0:02:44]}  b5 {[%clk 0:01:54]} 17. axb5 {[%clk 0:02:44]}  axb5 {[%clk 0:01:54]} 18. Bxb5 {[%clk 0:02:37]}  Bd7 {[%clk 0:01:52]} 19. Be2 {[%clk 0:02:28]}  Rb4 {[%clk 0:01:49]} 20. Ra6 {[%clk 0:02:17]}  Qb8 {[%clk 0:01:45]} 21. b3 {[%clk 0:02:00]}  Rxb3 {[%clk 0:01:34]} 22. f4 {[%clk 0:01:59]}  Rb2 {[%clk 0:01:32]} 23. Qe1 {[%clk 0:01:45]}  Neg4 {[%clk 0:00:46]} 24. hxg4 {[%clk 0:01:43]}  Bxg4 {[%clk 0:00:46]} 25. Bd3 {[%clk 0:01:24]}  Qb4 {[%clk 0:00:40]} 26. e5 {[%clk 0:00:49]}  dxe5 {[%clk 0:00:37]} 27. f5 {[%clk 0:00:49]}  e4 {[%clk 0:00:30]} 28. fxg6+ {[%clk 0:00:49]}  fxg6 {[%clk 0:00:30]} 29. Ra4 {[%clk 0:00:37]}  exd3 {[%clk 0:00:17]} 30. Rxb4 {[%clk 0:00:37]}  cxb4 {[%clk 0:00:16]} 31. Nd1 {[%clk 0:00:35]}  Bxd1 {[%clk 0:00:10]} 32. Qxd1 {[%clk 0:00:20]}  Nxd5 {[%clk 0:00:11]} 33. Qc1 {[%clk 0:00:21]}  Rc2 {[%clk 0:00:09]} 34. Qd1 {[%clk 0:00:15]}  Nxe3 {[%clk 0:00:05]} 35. Qxd3 {[%clk 0:00:15]}  Rc3 {[%clk 0:00:02]} 36. Qd7 {[%clk 0:00:14]}  Nxf1 {[%clk 0:00:02]} 37. Nxf1 {[%clk 0:00:14]}  Re1 {[%clk 0:00:02]} 38. Qd2 {[%clk 0:00:13]}  Rcc1 {[%clk 0:00:02]} 39. Kh2 {[%clk 0:00:13]}  Rxf1 {[%clk 0:00:03]} 40. Qxb4 {[%clk 0:00:13]}  Rfd1 {[%clk 0:00:04]} 41. Qe4 {[%clk 0:00:13]}  Rd4 {[%clk 0:00:04]} 42. Qe7 {[%clk 0:00:13]}  Rcc4 {[%clk 0:00:05]} 43. Qe6 {[%clk 0:00:13]}  Rh4+ {[%clk 0:00:05]} 44. Kg3 {[%clk 0:00:13]}  Rcg4+ {[%clk 0:00:06]} 45. Kf3 {[%clk 0:00:13]}  Rg5 {[%clk 0:00:06]} 0-1


[Site "https://www.chess.com"]

[Event "Titled Tuesday Blitz August 31 2021"]
[White "Krivonosov, Oleg"]
[Black "Martin Duque, Jesus"]
[WhiteFideId "11600349"]
[BlackFideId "2208954"]
[WhiteElo "2469"]
[BlackElo "2224"]
[Result "0-1"]
[Round "04"]
[TimeControl "180+1"]
[Date "2021.08.31"]
[WhiteClock "0:00:01"]
[BlackClock "0:00:20"]

1. Nf3 {[%clk 0:03:00]}  Nf6 {[%clk 0:02:58]} 2. c4 {[%clk 0:03:00]}  b6 {[%clk 0:02:58]} 3. g3 {[%clk 0:02:59]}  Bb7 {[%clk 0:02:58]} 4. Bg2 {[%clk 0:02:59]}  c5 {[%clk 0:02:59]} 5. O-O {[%clk 0:02:58]}  g6 {[%clk 0:02:59]} 6. b3 {[%clk 0:02:57]}  Bg7 {[%clk 0:02:59]} 7. Bb2 {[%clk 0:02:57]}  O-O {[%clk 0:02:59]} 8. Nc3 {[%clk 0:02:57]}  e6 {[%clk 0:02:59]} 9. d4 {[%clk 0:02:52]}  Qe7 {[%clk 0:02:54]} 10. e3 {[%clk 0:02:46]}  d5 {[%clk 0:02:51]} 11. cxd5 {[%clk 0:02:45]}  exd5 {[%clk 0:02:52]} 12. dxc5 {[%clk 0:02:40]}  bxc5 {[%clk 0:02:52]} 13. Na4 {[%clk 0:02:38]}  Na6 {[%clk 0:02:50]} 14. Rc1 {[%clk 0:02:35]}  Rfd8 {[%clk 0:02:48]} 15. Ba3 {[%clk 0:02:28]}  Ne4 {[%clk 0:02:15]} 16. Nd2 {[%clk 0:02:22]}  d4 {[%clk 0:01:53]} 17. Nxe4 {[%clk 0:02:11]}  Bxe4 {[%clk 0:01:53]} 18. Bxe4 {[%clk 0:01:58]}  Qxe4 {[%clk 0:01:53]} 19. Qc2 {[%clk 0:01:57]}  Qf3 {[%clk 0:01:33]} 20. exd4 {[%clk 0:01:49]}  Bxd4 {[%clk 0:01:19]} 21. Nxc5 {[%clk 0:01:39]}  Rac8 {[%clk 0:01:03]} 22. Nxa6 {[%clk 0:01:33]}  Rxc2 {[%clk 0:01:02]} 23. Rxc2 {[%clk 0:01:34]}  Bb6 {[%clk 0:00:47]} 24. Nc5 {[%clk 0:01:21]}  Rd1 {[%clk 0:00:44]} 25. Rc1 {[%clk 0:01:14]}  Rxf1+ {[%clk 0:00:36]} 26. Rxf1 {[%clk 0:01:12]}  Qe2 {[%clk 0:00:32]} 27. Bb4 {[%clk 0:01:02]}  a5 {[%clk 0:00:30]} 28. Na4 {[%clk 0:00:55]}  axb4 {[%clk 0:00:23]} 29. Nxb6 {[%clk 0:00:54]}  Qxa2 {[%clk 0:00:23]} 30. Nd5 {[%clk 0:00:39]}  Qxb3 {[%clk 0:00:23]} 31. Nxb4 {[%clk 0:00:39]}  Qxb4 {[%clk 0:00:23]} 32. h4 {[%clk 0:00:38]}  h5 {[%clk 0:00:22]} 33. Rd1 {[%clk 0:00:36]}  Kg7 {[%clk 0:00:22]} 34. Kg2 {[%clk 0:00:34]}  Kf6 {[%clk 0:00:22]} 35. Kg1 {[%clk 0:00:31]}  Qb7 {[%clk 0:00:22]} 36. Rd4 {[%clk 0:00:28]}  Ke5 {[%clk 0:00:22]} 37. Rf4 {[%clk 0:00:27]}  f6 {[%clk 0:00:22]} 38. Ra4 {[%clk 0:00:24]}  Qb1+ {[%clk 0:00:21]} 39. Kg2 {[%clk 0:00:22]}  Qb7+ {[%clk 0:00:21]} 40. Kg1 {[%clk 0:00:22]}  Qb6 {[%clk 0:00:20]} 41. Rf4 {[%clk 0:00:20]}  g5 {[%clk 0:00:20]} 42. hxg5 {[%clk 0:00:18]}  fxg5 {[%clk 0:00:21]} 43. Rf8 {[%clk 0:00:18]}  h4 {[%clk 0:00:20]} 44. Re8+ {[%clk 0:00:16]}  Kf5 {[%clk 0:00:21]} 45. Rf8+ {[%clk 0:00:16]}  Kg4 {[%clk 0:00:21]} 46. gxh4 {[%clk 0:00:15]}  Qb1+ {[%clk 0:00:20]} 47. Kg2 {[%clk 0:00:14]}  gxh4 {[%clk 0:00:20]} 48. Rg8+ {[%clk 0:00:13]}  Kh5 {[%clk 0:00:20]} 49. Rh8+ {[%clk 0:00:12]}  Kg5 {[%clk 0:00:21]} 50. Rg8+ {[%clk 0:00:12]}  Kf4 {[%clk 0:00:20]} 51. Rf8+ {[%clk 0:00:12]}  Ke5 {[%clk 0:00:20]} 52. Re8+ {[%clk 0:00:11]}  Kf6 {[%clk 0:00:21]} 53. Re3 {[%clk 0:00:11]}  Qb7+ {[%clk 0:00:20]} 54. Kh2 {[%clk 0:00:10]}  Kg5 {[%clk 0:00:21]} 55. Kg1 {[%clk 0:00:10]}  Kg4 {[%clk 0:00:21]} 56. Kh2 {[%clk 0:00:09]}  Qc7+ {[%clk 0:00:20]} 57. Kg2 {[%clk 0:00:09]}  Qf4 {[%clk 0:00:20]} 58. Kg1 {[%clk 0:00:07]}  Kf5 {[%clk 0:00:21]} 59. Kg2 {[%clk 0:00:06]}  Qc4 {[%clk 0:00:21]} 60. Rf3+ {[%clk 0:00:05]}  Kg4 {[%clk 0:00:21]} 61. Re3 {[%clk 0:00:06]}  Qc8 {[%clk 0:00:21]} 62. Kg1 {[%clk 0:00:05]}  h3 {[%clk 0:00:21]} 63. Rg3+ {[%clk 0:00:05]}  Kh4 {[%clk 0:00:21]} 64. Kh2 {[%clk 0:00:05]}  Qf5 {[%clk 0:00:20]} 65. Kg1 {[%clk 0:00:03]}  Qf4 {[%clk 0:00:20]} 66. Re3 {[%clk 0:00:01]}  h2+ {[%clk 0:00:20]} 67. Kg2 {[%clk 0:00:01]}  h1=Q+ {[%clk 0:00:20]} 68. Kxh1 {[%clk 0:00:01]}  Qxf2 {[%clk 0:00:20]} 0-1


[Site "https://www.chess.com"]

[Event "Titled Tuesday Blitz August 31 2021"]
[White "Kuzubov, Yuriy"]
[Black "Pulpan, Jakub"]
[WhiteFideId "14112906"]
[BlackFideId "302759"]
[WhiteElo "2564"]
[BlackElo "2443"]
[Result "1/2-1/2"]
[Round "04"]
[TimeControl "180+1"]
[Date "2021.08.31"]
[WhiteClock "0:00:17"]
[BlackClock "0:01:54"]

1. d4 {[%clk 0:03:00]}  Nf6 {[%clk 0:02:53]} 2. Nf3 {[%clk 0:03:00]}  d5 {[%clk 0:02:54]} 3. c4 {[%clk 0:03:00]}  e6 {[%clk 0:02:51]} 4. Nc3 {[%clk 0:02:59]}  c5 {[%clk 0:02:52]} 5. cxd5 {[%clk 0:02:55]}  Nxd5 {[%clk 0:02:52]} 6. e3 {[%clk 0:02:56]}  a6 {[%clk 0:02:51]} 7. Bd3 {[%clk 0:02:54]}  b5 {[%clk 0:02:51]} 8. O-O {[%clk 0:02:36]}  Bb7 {[%clk 0:02:47]} 9. a4 {[%clk 0:02:35]}  c4 {[%clk 0:02:44]} 10. Be2 {[%clk 0:02:30]}  Nd7 {[%clk 0:02:35]} 11. axb5 {[%clk 0:02:24]}  Nxc3 {[%clk 0:02:34]} 12. bxc3 {[%clk 0:02:25]}  axb5 {[%clk 0:02:35]} 13. Rb1 {[%clk 0:02:26]}  Ra5 {[%clk 0:02:28]} 14. Nd2 {[%clk 0:02:19]}  Qa8 {[%clk 0:02:28]} 15. Bf3 {[%clk 0:01:55]}  Bxf3 {[%clk 0:02:26]} 16. Nxf3 {[%clk 0:01:56]}  Bd6 {[%clk 0:02:25]} 17. Re1 {[%clk 0:01:55]}  Nf6 {[%clk 0:02:23]} 18. Nd2 {[%clk 0:01:52]}  Ne4 {[%clk 0:02:22]} 19. Qc2 {[%clk 0:01:15]}  Nxd2 {[%clk 0:02:18]} 20. Bxd2 {[%clk 0:01:16]}  O-O {[%clk 0:02:15]} 21. e4 {[%clk 0:01:15]}  Qc6 {[%clk 0:02:10]} 22. h4 {[%clk 0:01:14]}  h6 {[%clk 0:02:05]} 23. Be3 {[%clk 0:01:08]}  Rfa8 {[%clk 0:02:04]} 24. h5 {[%clk 0:00:32]}  Ra2 {[%clk 0:02:01]} 25. Rb2 {[%clk 0:00:33]}  Rxb2 {[%clk 0:02:00]} 26. Qxb2 {[%clk 0:00:33]}  Qxe4 {[%clk 0:02:00]} 27. Qxb5 {[%clk 0:00:33]}  Qd5 {[%clk 0:02:00]} 28. Qxd5 {[%clk 0:00:30]}  exd5 {[%clk 0:02:01]} 29. Rb1 {[%clk 0:00:30]}  Ra3 {[%clk 0:02:00]} 30. Bd2 {[%clk 0:00:30]}  Rb3 {[%clk 0:01:59]} 31. Ra1 {[%clk 0:00:22]}  Rb2 {[%clk 0:01:57]} 32. Be1 {[%clk 0:00:21]}  Bf4 {[%clk 0:01:57]} 33. Kf1 {[%clk 0:00:20]}  Rc2 {[%clk 0:01:57]} 34. Ra5 {[%clk 0:00:19]}  Bd2 {[%clk 0:01:51]} 35. Bxd2 {[%clk 0:00:19]}  Rxd2 {[%clk 0:01:52]} 36. Rxd5 {[%clk 0:00:19]}  Rd3 {[%clk 0:01:53]} 37. Rd8+ {[%clk 0:00:18]}  Kh7 {[%clk 0:01:53]} 38. d5 {[%clk 0:00:18]}  Rxc3 {[%clk 0:01:53]} 39. d6 {[%clk 0:00:18]}  Rd3 {[%clk 0:01:54]} 40. Ke2 {[%clk 0:00:18]}  Rd5 {[%clk 0:01:54]} 41. Rc8 {[%clk 0:00:17]} 1/2-1/2


[Site "https://www.chess.com"]

[Event "Titled Tuesday Blitz August 31 2021"]
[White "Levitskiy, Andrey"]
[Black "Kucuksari, Kaan"]
[WhiteFideId "14132885"]
[BlackFideId "6380166"]
[WhiteElo "2340"]
[BlackElo "2300"]
[Result "1/2-1/2"]
[Round "04"]
[TimeControl "180+1"]
[Date "2021.08.31"]
[WhiteClock "0:00:13"]
[BlackClock "0:00:11"]

1. e4 {[%clk 0:03:00]}  c6 {[%clk 0:02:58]} 2. Nf3 {[%clk 0:03:01]}  d5 {[%clk 0:02:59]} 3. exd5 {[%clk 0:03:01]}  cxd5 {[%clk 0:02:59]} 4. Ne5 {[%clk 0:03:02]}  Nc6 {[%clk 0:02:56]} 5. d4 {[%clk 0:03:02]}  Nf6 {[%clk 0:02:45]} 6. Bb5 {[%clk 0:03:02]}  Bd7 {[%clk 0:02:45]} 7. Nxd7 {[%clk 0:03:02]}  Qxd7 {[%clk 0:02:46]} 8. c3 {[%clk 0:03:03]}  a6 {[%clk 0:02:45]} 9. Bd3 {[%clk 0:03:01]}  e6 {[%clk 0:02:45]} 10. O-O {[%clk 0:03:02]}  Bd6 {[%clk 0:02:45]} 11. Re1 {[%clk 0:03:02]}  O-O {[%clk 0:02:46]} 12. Nd2 {[%clk 0:03:02]}  Rae8 {[%clk 0:02:41]} 13. Nf3 {[%clk 0:03:01]}  e5 {[%clk 0:02:41]} 14. dxe5 {[%clk 0:03:00]}  Nxe5 {[%clk 0:02:42]} 15. Bg5 {[%clk 0:02:53]}  Nfg4 {[%clk 0:02:39]} 16. h3 {[%clk 0:02:31]}  Nxf3+ {[%clk 0:02:15]} 17. Qxf3 {[%clk 0:02:32]}  Ne5 {[%clk 0:02:15]} 18. Qd1 {[%clk 0:01:22]}  Nxd3 {[%clk 0:02:10]} 19. Qxd3 {[%clk 0:01:23]}  Re6 {[%clk 0:02:10]} 20. Kf1 {[%clk 0:01:17]}  Bb8 {[%clk 0:01:54]} 21. Rad1 {[%clk 0:01:11]}  Rfe8 {[%clk 0:01:35]} 22. Rxe6 {[%clk 0:00:58]}  Qxe6 {[%clk 0:01:34]} 23. Be3 {[%clk 0:00:52]}  Rd8 {[%clk 0:01:25]} 24. Qd4 {[%clk 0:00:50]}  Be5 {[%clk 0:01:12]} 25. Qc5 {[%clk 0:00:46]}  Qc6 {[%clk 0:01:08]} 26. Qe7 {[%clk 0:00:31]}  Re8 {[%clk 0:01:07]} 27. Qb4 {[%clk 0:00:31]}  Bd6 {[%clk 0:00:54]} 28. Qb3 {[%clk 0:00:27]}  Bf8 {[%clk 0:00:20]} 29. Qxd5 {[%clk 0:00:26]}  Qc8 {[%clk 0:00:19]} 30. c4 {[%clk 0:00:19]}  h6 {[%clk 0:00:17]} 31. b3 {[%clk 0:00:20]}  Qb8 {[%clk 0:00:12]} 32. Kg1 {[%clk 0:00:17]}  Qc8 {[%clk 0:00:12]} 33. Qd7 {[%clk 0:00:18]}  Qb8 {[%clk 0:00:12]} 34. c5 {[%clk 0:00:12]}  Qa8 {[%clk 0:00:11]} 35. b4 {[%clk 0:00:12]}  Qb8 {[%clk 0:00:10]} 36. a4 {[%clk 0:00:12]}  Qa8 {[%clk 0:00:10]} 37. b5 {[%clk 0:00:13]}  axb5 {[%clk 0:00:11]} 38. axb5 {[%clk 0:00:14]}  Qa4 {[%clk 0:00:10]} 39. Qd3 {[%clk 0:00:13]}  g6 {[%clk 0:00:08]} 40. Rc1 {[%clk 0:00:13]}  Rc8 {[%clk 0:00:08]} 41. Qc4 {[%clk 0:00:11]}  Qa8 {[%clk 0:00:07]} 42. c6 {[%clk 0:00:11]}  bxc6 {[%clk 0:00:07]} 43. bxc6 {[%clk 0:00:12]}  Bd6 {[%clk 0:00:07]} 44. Bxh6 {[%clk 0:00:12]}  Qa3 {[%clk 0:00:05]} 45. Qc3 {[%clk 0:00:10]}  Qxc3 {[%clk 0:00:04]} 46. Rxc3 {[%clk 0:00:11]}  f6 {[%clk 0:00:03]} 47. Be3 {[%clk 0:00:11]}  Kf7 {[%clk 0:00:04]} 48. g3 {[%clk 0:00:11]}  Ke6 {[%clk 0:00:05]} 49. h4 {[%clk 0:00:10]}  Kd5 {[%clk 0:00:06]} 50. Kg2 {[%clk 0:00:10]}  Rxc6 {[%clk 0:00:06]} 51. Rd3+ {[%clk 0:00:11]}  Ke4 {[%clk 0:00:06]} 52. Rd4+ {[%clk 0:00:11]}  Ke5 {[%clk 0:00:06]} 53. Rd2 {[%clk 0:00:12]}  Ke6 {[%clk 0:00:07]} 54. Re2 {[%clk 0:00:12]}  Be5 {[%clk 0:00:07]} 55. f4 {[%clk 0:00:11]}  Bd6 {[%clk 0:00:07]} 56. Kf3 {[%clk 0:00:12]}  Kf7 {[%clk 0:00:07]} 57. g4 {[%clk 0:00:12]}  f5 {[%clk 0:00:08]} 58. g5 {[%clk 0:00:11]}  Rc3 {[%clk 0:00:08]} 59. Kf2 {[%clk 0:00:10]}  Rc4 {[%clk 0:00:09]} 60. Kf3 {[%clk 0:00:08]}  Re4 {[%clk 0:00:09]} 61. Rd2 {[%clk 0:00:08]}  Be7 {[%clk 0:00:09]} 62. Rd7 {[%clk 0:00:08]}  Re6 {[%clk 0:00:10]} 63. Bc5 {[%clk 0:00:08]}  Ke8 {[%clk 0:00:09]} 64. Rxe7+ {[%clk 0:00:08]}  Rxe7 {[%clk 0:00:10]} 65. Bxe7 {[%clk 0:00:08]}  Kxe7 {[%clk 0:00:11]} 66. Ke3 {[%clk 0:00:09]}  Kd7 {[%clk 0:00:11]} 67. Kd4 {[%clk 0:00:10]}  Kd6 {[%clk 0:00:11]} 68. Kc4 {[%clk 0:00:11]}  Kc6 {[%clk 0:00:11]} 69. Kd4 {[%clk 0:00:10]}  Kd6 {[%clk 0:00:11]} 70. Kc4 {[%clk 0:00:10]}  Kc6 {[%clk 0:00:11]} 71. Kd3 {[%clk 0:00:08]}  Kd5 {[%clk 0:00:11]} 72. Ke3 {[%clk 0:00:09]}  Ke6 {[%clk 0:00:09]} 73. Kf3 {[%clk 0:00:09]}  Kf7 {[%clk 0:00:07]} 74. Kg3 {[%clk 0:00:10]}  Kg7 {[%clk 0:00:08]} 75. Kh3 {[%clk 0:00:09]}  Kh7 {[%clk 0:00:08]} 76. Kg2 {[%clk 0:00:10]}  Kg7 {[%clk 0:00:09]} 77. Kf3 {[%clk 0:00:11]}  Kf7 {[%clk 0:00:10]} 78. Ke3 {[%clk 0:00:11]}  Ke7 {[%clk 0:00:10]} 79. Kd3 {[%clk 0:00:12]}  Kd7 {[%clk 0:00:11]} 80. Kd4 {[%clk 0:00:13]}  Kd6 {[%clk 0:00:11]} 1/2-1/2


[Site "https://www.chess.com"]

[Event "Titled Tuesday Blitz August 31 2021"]
[White "Lisik, Valery"]
[Black "Krzywda, Andrzej"]
[WhiteFideId "4101596"]
[BlackFideId "1114565"]
[WhiteElo "2592"]
[BlackElo "2100"]
[Result "0-1"]
[Round "04"]
[TimeControl "180+1"]
[Date "2021.08.31"]
[WhiteClock "0:00:18"]
[BlackClock "0:00:09"]

1. d4 {[%clk 0:02:48]}  Nf6 {[%clk 0:02:59]} 2. c4 {[%clk 0:02:47]}  c5 {[%clk 0:02:59]} 3. d5 {[%clk 0:02:47]}  b5 {[%clk 0:03:00]} 4. cxb5 {[%clk 0:02:48]}  a6 {[%clk 0:03:00]} 5. e3 {[%clk 0:02:48]}  g6 {[%clk 0:03:00]} 6. Nc3 {[%clk 0:02:48]}  Bg7 {[%clk 0:03:00]} 7. a4 {[%clk 0:02:48]}  O-O {[%clk 0:02:58]} 8. e4 {[%clk 0:02:48]}  e6 {[%clk 0:02:22]} 9. Nf3 {[%clk 0:02:44]}  exd5 {[%clk 0:02:20]} 10. exd5 {[%clk 0:02:45]}  Qe7+ {[%clk 0:02:12]} 11. Be2 {[%clk 0:02:42]}  Bb7 {[%clk 0:01:55]} 12. bxa6 {[%clk 0:02:40]}  Nxa6 {[%clk 0:01:52]} 13. d6 {[%clk 0:02:40]}  Qe6 {[%clk 0:01:49]} 14. O-O {[%clk 0:02:40]}  Nb4 {[%clk 0:01:43]} 15. Nb5 {[%clk 0:02:34]}  Nfd5 {[%clk 0:01:29]} 16. Bc4 {[%clk 0:02:30]}  Qf5 {[%clk 0:01:29]} 17. Re1 {[%clk 0:02:07]}  Nf4 {[%clk 0:01:16]} 18. Bxf4 {[%clk 0:01:43]}  Qxf4 {[%clk 0:01:15]} 19. Nc7 {[%clk 0:01:37]}  Qxc4 {[%clk 0:01:10]} 20. Nxa8 {[%clk 0:01:35]}  Bxa8 {[%clk 0:01:00]} 21. Rc1 {[%clk 0:01:35]}  Qd5 {[%clk 0:00:35]} 22. Qxd5 {[%clk 0:01:16]}  Bxd5 {[%clk 0:00:34]} 23. Red1 {[%clk 0:01:05]}  c4 {[%clk 0:00:21]} 24. Rd2 {[%clk 0:00:58]}  Nd3 {[%clk 0:00:19]} 25. Rcc2 {[%clk 0:00:51]}  Rb8 {[%clk 0:00:17]} 26. Kf1 {[%clk 0:00:47]}  Nb4 {[%clk 0:00:12]} 27. Rc1 {[%clk 0:00:45]}  Ra8 {[%clk 0:00:11]} 28. Ne1 {[%clk 0:00:20]}  Rxa4 {[%clk 0:00:10]} 29. Rcd1 {[%clk 0:00:20]}  Be6 {[%clk 0:00:09]} 30. Nf3 {[%clk 0:00:17]}  Ra2 {[%clk 0:00:09]} 31. Nd4 {[%clk 0:00:17]}  Bxd4 {[%clk 0:00:06]} 32. Rxd4 {[%clk 0:00:18]}  Rxb2 {[%clk 0:00:06]} 33. R4d2 {[%clk 0:00:15]}  c3 {[%clk 0:00:06]} 34. Rxb2 {[%clk 0:00:11]}  cxb2 {[%clk 0:00:06]} 35. Rb1 {[%clk 0:00:12]}  Nd3 {[%clk 0:00:06]} 36. Ke2 {[%clk 0:00:12]}  Ba2 {[%clk 0:00:07]} 37. Kxd3 {[%clk 0:00:13]}  Bxb1+ {[%clk 0:00:07]} 38. Kc3 {[%clk 0:00:14]}  Be4 {[%clk 0:00:07]} 39. Kxb2 {[%clk 0:00:15]}  Bxg2 {[%clk 0:00:07]} 40. Kc3 {[%clk 0:00:16]}  Bc6 {[%clk 0:00:07]} 41. Kd4 {[%clk 0:00:17]}  f6 {[%clk 0:00:08]} 42. Kc5 {[%clk 0:00:16]}  Kf7 {[%clk 0:00:08]} 43. Kb6 {[%clk 0:00:17]}  Ke6 {[%clk 0:00:09]} 44. Kc7 {[%clk 0:00:18]}  g5 {[%clk 0:00:09]} 0-1


[Site "https://www.chess.com"]